bitfinex-derivatives/quotes_ETHF0:USTF0_20250530
["timestamp","ask_amount","ask_price","bid_price","bid_amount"]
[1748592823745,3.2078,2618.1,2617.7,5.00572639]
[1748592823941,3.2078,2618.1,2617.7,0.76946639]
[1748592824143,3.2078,2618.1,2617.7,0.00572639]
[1748592824342,3.2078,2618.1,2617.7,0.76944639]
[1748592824541,0.76371,2617.8,2617.7,0.76944639]
[1748592824840,0.76371,2617.8,2617.7,0.00572639]
[1748592825042,3.97151,2617.8,2617.7,4.48672639]
[1748592825448,3.97151,2617.8,2617.7,5.25046639]
[1748592826143,3.2078,2617.8,2617.7,5.25046639]
[1748592826647,3.2078,2617.8,2617.7,5.25146639]
[1748592828652,3.2078,2618.3,2618.2,0.76359]
[1748592828948,0.76353,2618.4,2618.3,0.76356]
[1748592829446,0.76353,2618.4,2618.3,0.06993857]
[1748592830350,1.90876,2618.5,2617.7,0.00572639]
[1748592830547,0.76362,2618.1,2618.0,0.76364]
[1748592830850,0.7636,2618.2,2618.1,0.76359]
[1748592831245,0.76364,2618.1,2618.0,0.76363]
[1748592831555,5.18359,2618.3,2618.2,0.76359]
[1748592832053,0.76361,2618.2,2618.1,0.7636]
[1748592832856,4.42,2618.3,2618.2,0.76359]
[1748592832857,3.97138,2618.3,2618.2,0.76359]
[1748592836261,3.2078,2618.3,2618.2,0.76359]
[1748592836452,0.19662639,2618.7,2618.3,1.90888]
[1748592836653,0.19662639,2618.7,2618.6,0.76347]
[1748592837452,0.96006639,2618.7,2618.6,0.76347]
[1748592838156,0.96006639,2618.7,2618.4,8.94231]
[1748592838157,0.7635,2618.6,2618.5,0.76349]
[1748592838457,0.76918639,2618.7,2618.6,0.76347]
[1748592839957,0.76347,2618.6,2618.5,5.24548]
[1748592840957,0.95437,2618.6,2618.5,5.24548]
[1748592841162,0.7635,2618.5,2618.4,0.76351]
[1748592841459,0.7635,2618.5,2618.4,4.462]
[1748592841853,2.0824,2618.5,2618.4,5.22553]
[1748592842162,0.1909,2618.6,2618.5,0.7635]
[1748592842549,0.95437,2618.6,2618.5,0.7635]
[1748592842750,0.76353,2618.4,2618.3,0.76354]
[1748592842950,0.76356,2618.4,2618.2,4.462]
[1748592843149,0.76356,2618.3,2618.2,4.462]
[1748592843347,3.22766,2618.5,2618.3,0.76353]
[1748592843348,0.76355,2618.4,2618.3,0.76353]
[1748592844658,0.76356,2618.3,2618.2,4.462]
[1748592844958,3.2277,2618.5,2618.2,4.462]
[1748592844959,0.76353,2618.5,2618.4,0.7635]
[1748592845460,0.76353,2618.4,2618.3,0.76355]
[1748592845647,1.97553,2618.4,2618.3,0.76355]
[1748592846054,0.76356,2618.3,2618.2,5.22557]
[1748592846253,0.76356,2618.3,2618.2,4.462]
[1748592846254,1.97556,2618.3,2618.2,4.462]
[1748592846562,5.18336,2618.3,2618.2,4.462]
[1748592847556,3.2078,2618.3,2618.2,0.76359]
[1748592847961,3.97136,2618.3,2618.2,0.76359]
[1748592848766,0.76362,2618.2,2618.1,5.22559]
[1748592849057,3.97138,2618.3,2618.2,0.76359]
[1748592849359,3.2078,2618.3,2618.2,0.76359]
[1748592849554,3.97136,2618.3,2618.2,0.76359]
[1748592849959,3.97136,2618.3,2618.2,2.00389]
[1748592851757,0.76359,2618.2,2618.1,5.2256]
[1748592851962,0.76359,2618.2,2618.1,4.462]
[1748592852160,0.76359,2618.2,2618.1,5.22562]
[1748592852967,0.76359,2618.2,2618.1,4.462]
[1748592853264,0.76359,2618.2,2618.1,5.22562]
[1748592853462,2.03569,2618.2,2618.1,5.22562]
[1748592854168,2.03569,2618.2,2618.1,4.462]
[1748592854359,2.03569,2618.2,2618.1,5.22562]
[1748592854554,2.03569,2618.2,2618.1,4.462]
[1748592854961,0.7637,2617.8,2617.7,4.46772639]
[1748592855156,3.9715,2617.8,2617.7,0.00572639]
[1748592855363,0.76387,2617.4,2617.0,7.6698]
[1748592856768,0.76386,2617.4,2617.3,0.76383]
[1748592857267,3.2078,2617.5,2617.1,1.266]
[1748592857470,1.2447,2617.3,2617.1,1.266]
[1748592857669,0.76394,2617.0,2616.9,4.462]
[1748592857869,1.90996,2616.9,2616.3,0.38950423]
[1748592858162,0.7641,2616.5,2616.4,0.76411]
[1748592858368,0.76411,2616.4,2616.3,0.76412]
[1748592858565,0.76417,2616.2,2616.1,4.463]
[1748592859859,3.2078,2616.4,2616.1,4.463]
[1748592860066,3.97184,2616.7,2616.5,0.76407]
[1748592860267,3.2078,2616.7,2616.1,4.463]
[1748592860472,0.76406,2616.6,2616.4,0.7641]
[1748592860765,0.76407,2616.6,2616.5,0.76408]
[1748592861271,0.76407,2616.6,2616.1,4.463]
[1748592861565,3.97184,2616.7,2616.2,1.91043]
[1748592861871,3.2078,2616.7,2616.5,0.76407]
[1748592862064,3.2078,2616.7,2616.4,0.76411]
[1748592862267,3.2078,2616.7,2616.3,0.76412]
[1748592862460,3.15848,2616.6,2616.0,3.2078]
[1748592862666,0.7642,2616.2,2616.1,5.22719]
[1748592863465,0.7642,2616.2,2616.1,4.463]
[1748592863771,0.7642,2616.2,2616.1,5.2272]
[1748592863971,3.2078,2616.4,2616.2,0.76417]
[1748592864173,3.2078,2616.4,2616.3,0.76414]
[1748592864476,3.2078,2616.4,2615.8,4.464]
[1748592864669,0.76423,2616.1,2616.0,0.76422]
[1748592864968,3.2078,2616.1,2615.4,3.2078]
[1748592865171,0.76427,2615.9,2615.8,0.76427]
[1748592865366,0.76424,2616.0,2615.9,0.76423]
[1748592866071,3.97202,2616.1,2616.0,0.76423]
[1748592866571,3.2078,2616.1,2616.0,0.76423]
[1748592866866,3.2078,2616.1,2616.0,5.22823]
[1748592867173,3.2078,2617.7,2617.1,0.76391]
[1748592867467,0.38730092,2618.0,2617.9,0.76367]
[1748592867773,0.38730092,2618.0,2617.9,5.22867]
[1748592868161,5.1169,2618.5,2617.9,4.465]
[1748592868469,0.76363,2618.1,2617.9,5.23438639]
[1748592868670,3.2078,2618.2,2617.9,4.47072639]
[1748592868872,3.97141,2618.2,2618.0,0.76363]
[1748592869274,4.16231,2618.2,2618.1,0.76362]
[1748592869472,3.3987,2618.2,2618.0,0.76364]
[1748592869666,0.76365,2618.0,2617.9,4.47072639]
[1748592869974,4.16231,2618.2,2618.0,0.76363]
[1748592870471,0.76363,2618.1,2617.9,5.23439639]
[1748592870867,4.16231,2618.2,2618.0,0.76365]
[1748592871074,0.76362,2618.1,2617.9,5.23438639]
[1748592871469,4.16231,2618.2,2618.1,0.76362]
[1748592871875,4.16229,2618.2,2618.1,0.76362]
[1748592872079,0.76362,2618.1,2617.9,4.47072639]
[1748592872270,3.3987,2618.2,2617.9,4.47072639]
[1748592872576,0.95449,2618.2,2618.0,0.76362]
[1748592872970,0.1909,2618.2,2618.1,0.76362]
[1748592873569,0.76362,2618.1,2618.0,0.76363]
[1748592873879,0.1909,2618.2,2617.9,4.47072639]
[1748592874078,0.76364,2618.1,2618.0,0.76364]
[1748592874276,0.76365,2618.0,2617.9,4.47072639]
[1748592875975,0.76365,2618.0,2617.9,4.54066496]
[1748592877373,0.76365,2618.0,2617.9,5.30434496]
[1748592877573,0.76364,2618.1,2618.0,0.76362]
[1748592877975,5.44941,2618.2,2618.1,0.76362]
[1748592878172,0.1909,2618.2,2618.1,0.76362]
[1748592880081,0.95449,2618.2,2618.1,0.76362]
[1748592880374,0.1909,2618.2,2618.1,0.76362]
[1748592881174,0.95449,2618.2,2618.1,0.76362]
[1748592881376,0.1909,2618.2,2618.1,0.76362]
[1748592882084,0.76362,2618.1,2618.0,2.63423]
[1748592882382,0.95451,2618.2,2618.1,0.76362]
[1748592882984,0.76362,2618.1,2618.0,2.63422]
[1748592883185,0.95451,2618.2,2618.1,0.76362]
[1748592883385,0.1909,2618.2,2618.1,0.76362]
[1748592883582,0.95449,2618.2,2618.1,0.76362]
[1748592884485,0.1909,2618.2,2618.1,0.76362]
[1748592884879,0.95449,2618.2,2618.1,0.76362]
[1748592885481,0.1909,2618.2,2618.1,0.76362]
[1748592885785,0.95449,2618.2,2618.1,0.76362]
[1748592886486,0.1909,2618.2,2618.1,0.76362]
[1748592887082,0.00572639,2618.5,2618.4,0.76353]
[1748592887293,0.00572639,2618.5,2618.4,5.20653]
[1748592887693,0.00572639,2618.5,2618.4,6.50653]
[1748592890199,0.00572639,2618.5,2618.4,6.57646857]
[1748592891394,0.76922639,2618.5,2618.4,0.06993857]
[1748592891592,0.76922639,2618.5,2618.4,4.51293857]
[1748592892194,0.76922639,2618.5,2618.4,0.06993857]
[1748592892695,0.76922639,2618.5,2618.4,0.83346857]
[1748592893404,0.00572639,2618.5,2618.4,0.83346857]
[1748592893896,0.76922639,2618.5,2618.4,0.83346857]
[1748592894899,0.00572639,2618.5,2618.4,0.83346857]
[1748592895101,0.00572639,2618.5,2618.4,2.16556857]
[1748592895996,0.76922639,2618.5,2618.4,2.16556857]
[1748592896196,0.00572639,2618.5,2618.4,2.16556857]
[1748592896800,0.76922639,2618.5,2618.4,2.16556857]
[1748592897009,0.76922639,2618.5,2618.4,0.83346857]
[1748592897199,0.76922639,2618.5,2618.4,0.06993857]
[1748592898413,0.76922639,2618.5,2618.4,0.83346857]
[1748592898899,0.76922639,2618.5,2618.4,2.04306857]
[1748592900202,0.00572639,2618.5,2618.4,2.04306857]
[1748592901108,0.76922639,2618.5,2618.4,0.06993857]
[1748592902006,0.76922639,2618.5,2618.4,0.83346857]
[1748592902197,0.00572639,2618.5,2618.4,7.11656857]
[1748592902400,0.00572639,2618.5,2618.4,2.11656857]
[1748592902608,1.2754,2619.2,2618.5,0.7635]
[1748592902907,2.03872,2619.2,2619.1,0.76333]
[1748592903105,1.87104593,2619.2,2619.1,0.76333]
[1748592905113,1.10772593,2619.2,2619.1,0.76333]
[1748592905310,0.00572639,2619.4,2619.3,0.76327]
[1748592905513,0.76896639,2619.4,2619.3,0.76327]
[1748592905709,0.76327,2619.3,2619.2,2.07858]
[1748592906214,0.76327,2619.3,2619.2,1.3153]
[1748592906412,0.7633,2619.2,2619.1,4.425]
[1748592906614,0.7633,2619.2,2619.1,5.18833]
[1748592906817,0.7633,2619.2,2619.1,4.425]
[1748592907117,2.0554,2619.2,2619.1,4.425]
[1748592907308,2.0554,2619.2,2619.1,5.18833]
[1748592908520,2.0554,2619.2,2619.1,4.425]
[1748592909109,2.0554,2619.2,2619.1,5.18833]
[1748592909312,0.00572639,2619.4,2619.1,7.6328]
[1748592909510,0.00572639,2619.4,2619.3,0.76327]
[1748592911218,0.00572639,2619.4,2619.3,5.18827]
[1748592911409,0.76896639,2619.4,2619.3,5.18827]
[1748592911916,0.00572639,2619.4,2619.3,5.18827]
[1748592920723,0.00572639,2619.4,2619.3,5.25820857]
[1748592921517,1.923,2620.0,2619.9,0.76309]
[1748592921726,0.76306,2620.0,2619.9,0.76309]
[1748592921929,3.2078,2620.1,2620.0,0.76306]
[1748592923122,0.6441,2620.2,2620.1,0.76303]
[1748592923925,1.4071,2620.2,2620.1,0.76303]
[1748592924127,0.76303,2620.1,2620.0,1.3133]
[1748592924331,0.00572639,2620.3,2620.0,1.3133]
[1748592924332,0.00572639,2620.3,2620.2,0.763]
[1748592924524,3.2078,2620.9,2620.8,0.76283]
[1748592924724,0.76285,2620.8,2620.7,0.76284]
[1748592925426,3.97061,2620.9,2620.8,0.76283]
[1748592925725,3.97061,2620.9,2620.6,4.423]
[1748592925726,0.76285,2620.8,2620.7,0.76284]
[1748592925922,3.9706,2620.9,2620.8,0.76283]
[1748592926127,0.00572639,2621.0,2620.9,0.7628]
[1748592927325,0.76849639,2621.0,2620.9,0.7628]
[1748592929536,0.00572639,2621.0,2620.9,0.7628]
[1748592930833,0.76849639,2621.0,2620.9,0.7628]
[1748592931244,0.76283,2620.9,2620.8,0.76281]
[1748592931538,0.76283,2620.8,2620.7,5.19015]
[1748592931731,0.76283,2620.8,2620.7,7.6298]
[1748592931933,0.76283,2620.8,2620.7,8.39266]
[1748592934231,2.07562,2620.9,2620.8,0.76283]
[1748592934435,2.07562,2620.9,2620.7,7.6298]
[1748592934436,0.76283,2620.8,2620.7,7.6298]
[1748592934639,0.76283,2620.8,2620.7,3.97066]
[1748592934837,0.76283,2620.8,2620.7,8.37366]
[1748592935235,0.76283,2620.8,2620.7,4.403]
[1748592935540,1.90725,2620.6,2620.2,4.403]
[1748592935740,0.76298,2620.3,2620.2,4.403]
[1748592935934,3.97078,2620.3,2620.2,4.403]
[1748592936138,0.76309,2619.9,2619.8,5.17182639]
[1748592936737,0.76309,2619.9,2619.8,4.40872639]
[1748592937434,0.76309,2619.9,2619.8,0.00572639]
[1748592937634,2.60269,2619.9,2619.8,0.00572639]
[1748592938842,0.76321,2619.5,2619.4,4.403]
[1748592939738,1.42711,2619.5,2619.4,4.403]
[1748592940046,2.0829,2619.6,2619.5,0.76321]
[1748592940442,1.3197,2619.6,2619.5,0.76321]
[1748592940650,0.76317,2619.7,2619.6,0.76318]
[1748592941648,0.76318,2619.6,2619.5,2.09758]
[1748592941942,0.76317,2619.7,2619.6,0.76315]
[1748592942143,0.76317,2619.7,2619.6,3.97095]
[1748592942750,0.76317,2619.7,2619.6,3.2078]
[1748592942939,0.76317,2619.7,2619.6,3.97098]
[1748592945044,1.90745,2620.3,2619.7,1.90788]
[1748592945248,0.76314,2619.8,2619.7,0.76311]
[1748592945549,0.76314,2619.8,2619.7,2.02515]
[1748592946246,0.76314,2619.8,2619.7,1.262]
[1748592947453,0.76315,2619.7,2619.6,4.9766]
[1748592947650,0.76315,2619.7,2619.6,0.5726]
[1748592948048,0.76315,2619.7,2619.6,1.33578]
[1748592948247,0.76312,2619.9,2619.8,0.76308]
[1748592948451,0.76313,2619.9,2619.8,0.76309]
[1748592949347,5.04292,2620.3,2619.6,1.8013]
[1748592949648,0.76312,2619.8,2619.7,1.99183]
[1748592950350,0.76312,2619.8,2619.7,2.06176857]
[1748592950941,0.76312,2619.8,2619.7,0.06993857]
[1748592951650,0.76312,2619.8,2619.7,0.83308857]
[1748592951855,0.7631,2620.0,2619.9,0.76306]
[1748592952056,0.76312,2619.9,2619.8,0.7631]
[1748592952350,0.76312,2619.9,2619.8,5.1671]
[1748592952754,0.76312,2619.9,2619.8,4.404]
[1748592953048,0.76309,2620.0,2619.8,4.404]
[1748592953255,0.76309,2619.9,2619.8,5.6323]
[1748592953654,0.76309,2619.9,2619.8,5.16712]
[1748592954152,0.76309,2619.9,2619.8,4.404]
[1748592954654,1.98009,2619.9,2619.8,4.404]
[1748592954849,1.98009,2619.9,2619.8,5.16712]
[1748592955053,0.76309,2619.9,2619.8,5.16712]
[1748592955250,0.76309,2619.9,2619.8,5.6323]
[1748592957356,0.76308,2620.0,2619.8,5.6323]
[1748592957560,0.76308,2620.0,2619.9,0.76306]
[1748592957754,0.76308,2620.0,2619.9,2.05686]
[1748592957955,0.76303,2620.2,2620.1,0.763]
[1748592958256,4.4605,2620.3,2620.0,0.76305]
[1748592958257,0.76306,2620.1,2620.0,0.76305]
[1748592958453,0.76306,2620.1,2619.9,1.9267]
[1748592958454,0.76306,2620.0,2619.9,2.68977]
[1748592959257,0.76306,2620.0,2619.9,1.9267]
[1748592959457,0.76312,2619.8,2619.7,0.83306857]
[1748592959657,0.76312,2619.8,2619.7,6.53786857]
[1748592959861,0.76311,2619.9,2619.8,0.76308]
[1748592960355,0.76312,2619.8,2619.7,0.83306857]
[1748592960657,0.76312,2619.8,2619.7,5.23706857]
[1748592960850,0.76312,2619.8,2619.7,4.47393857]
[1748592961253,0.76312,2619.8,2619.7,5.23708857]
[1748592962554,6.35188,2620.4,2619.8,1.90781]
[1748592962762,0.76306,2620.1,2620.0,0.76302]
[1748592963359,0.76303,2620.2,2620.1,0.763]
[1748592963563,1.86778996,2620.2,2620.1,0.763]
[1748592963760,1.10475996,2620.2,2620.1,0.763]
[1748592964766,1.90723,2620.6,2620.1,0.6244]
[1748592965062,0.763,2620.2,2620.1,0.6244]
[1748592965257,1.9074,2620.4,2619.9,0.76306]
[1748592965258,0.76309,2620.0,2619.9,0.76306]
[1748592966461,0.76312,2619.8,2619.7,0.06993857]
[1748592967159,1.41962,2619.8,2619.7,0.06993857]
[1748592967365,2.52641264,2619.8,2619.7,0.06993857]
[1748592967561,7.52641264,2619.8,2619.7,0.06993857]
[1748592967758,0.76315,2619.7,2619.6,0.5726]
[1748592967956,3.80090632,2619.7,2619.6,0.5726]
[1748592968161,8.80090632,2619.7,2619.6,0.5726]
[1748592968361,3.80090632,2619.7,2619.6,0.5726]
[1748592970173,0.76327,2619.3,2619.2,0.00572639]
[1748592970469,0.76327,2619.3,2618.9,1.7315]
[1748592970470,0.76335,2619.0,2618.9,1.7315]
[1748592970775,0.76347,2618.6,2618.5,4.384]
[1748592971371,0.76347,2618.6,2618.3,3.2078]
[1748592971372,0.76353,2618.4,2618.3,3.2078]
[1748592971563,0.76353,2618.4,2618.3,3.97136]
[1748592971760,0.76353,2618.4,2618.3,3.2078]
[1748592971965,1.42252,2618.5,2618.3,3.2078]
[1748592972267,0.659,2618.5,2618.4,0.76353]
[1748592972771,0.76353,2618.4,2618.3,3.97134]
[1748592973071,0.76353,2618.4,2618.3,3.2078]
[1748592973273,2.08523,2618.4,2618.3,3.2078]
[1748592973473,0.76359,2618.2,2618.1,0.00572639]
[1748592973669,0.76357,2618.3,2618.2,0.76356]
[1748592973867,2.08525,2618.4,2618.3,0.76356]
[1748592974067,0.76359,2618.3,2618.2,0.76358]
[1748592974475,2.08524,2618.4,2618.3,0.76356]
[1748592974675,0.76358,2618.3,2618.2,0.76357]
[1748592974971,0.76359,2618.2,2618.1,0.76931639]
[1748592975170,0.659,2618.5,2618.1,4.39072639]
[1748592975372,3.21352639,2619.5,2618.3,5.1167]
[1748592975668,2.4935,2619.2,2618.6,5.11643]
[1748592975969,0.76339,2618.9,2618.8,0.76341]
[1748592976173,3.2078,2619.1,2618.5,4.386]
[1748592976368,0.76347,2618.6,2618.5,5.1495]
[1748592976565,1.2443,2618.8,2618.7,0.76344]
[1748592977166,1.2443,2618.8,2618.6,0.76346]
[1748592977366,0.76347,2618.7,2618.6,0.76346]
[1748592977678,1.2443,2618.8,2618.5,5.6884]
[1748592977679,0.76347,2618.6,2618.5,4.386]
[1748592977974,0.7635,2618.5,2618.4,0.76351]
[1748592978177,5.11614,2619.1,2618.3,3.2078]
[1748592978376,0.76347,2618.7,2618.6,0.76346]
[1748592978574,0.76349,2618.6,2618.5,0.76348]
[1748592978773,0.76348,2618.6,2618.5,0.76347]
[1748592978971,1.90848,2618.9,2618.4,1.2173]
[1748592978972,0.76346,2618.7,2618.6,0.76345]
[1748592979167,2.01343,2618.8,2618.7,0.76344]
[1748592979475,0.76343,2618.8,2618.7,0.76344]
[1748592979670,0.7634,2618.9,2618.8,0.76338]
[1748592979972,1.25,2619.1,2618.6,0.06993857]
[1748592980173,0.76343,2618.8,2618.7,0.76342]
[1748592980471,0.76344,2618.7,2618.6,0.06993857]
[1748592980672,1.99134,2618.7,2618.6,0.06993857]
[1748592981069,5.19914,2618.7,2618.6,0.06993857]
[1748592983373,3.97124,2618.7,2618.6,0.83340857]
[1748592983874,3.97124,2618.7,2618.6,0.06993857]
[1748592984673,0.76344,2618.7,2618.6,0.06993857]
[1748592985677,2.71694,2618.7,2618.6,0.06993857]
[1748592986278,7.71694,2618.7,2618.6,8.57e-06]
[1748592986769,8.82365029,2618.7,2618.6,8.57e-06]
[1748592986969,13.20965029,2618.7,2618.6,8.57e-06]
[1748592987874,0.76358,2618.2,2618.1,4.96e-06]
[1748592988175,3.97138,2618.2,2618.1,4.96e-06]
[1748592988573,8.97138,2618.2,2618.1,4.96e-06]
[1748592988771,9.89392547,2618.2,2618.1,4.96e-06]
[1748592989076,9.59048,2618.2,2618.1,4.96e-06]
[1748592990280,3.81833,2618.0,2617.4,3.2078]
[1748592990473,0.76379,2617.5,2617.4,3.2078]
[1748592990880,0.76385,2617.3,2617.1,5.1032]
[1748592991277,0.76385,2617.3,2617.1,5.8671]
[1748592991577,0.76385,2617.3,2617.1,5.1032]
[1748592993783,0.00572639,2617.5,2617.1,5.1032]
[1748592993981,0.00572639,2617.5,2617.4,3.97162]
[1748592994189,0.76363,2618.1,2617.7,1.90927]
[1748592994483,1.90882,2618.4,2617.9,3.2078]
[1748592994683,5.11657,2618.5,2617.9,3.2078]
[1748592994881,0.7636,2618.2,2618.0,1.3189]
[1748592995185,0.7636,2618.2,2618.1,0.76358]
[1748592995683,0.00572639,2618.4,2618.3,0.76355]
[1748592995976,0.00572639,2618.4,2618.3,8.33935]
[1748592996574,0.00572639,2618.4,2618.3,13.33935]
[1748592996783,0.1906,2619.3,2618.3,31.1158]
[1748592996979,0.1906,2619.3,2619.2,3.97109]
[1748592997286,0.76315,2619.7,2619.6,0.76316]
[1748592997479,3.2078,2619.9,2619.3,2.52426]
[1748592997681,0.76316,2619.7,2619.6,0.76316]
[1748592998188,0.76885639,2619.8,2619.6,0.76316]
[1748592998481,0.76885639,2619.8,2619.7,1.2401]
[1748593000182,0.1908,2619.9,2619.8,0.76312]
[1748593000482,3.2078,2620.5,2619.8,3.2078]
[1748593000784,0.76297,2620.3,2620.2,0.76299]
[1748593000979,0.76297,2620.3,2620.2,4.367]
[1748593002179,3.21352639,2620.5,2620.2,4.367]
[1748593002180,0.76296,2620.4,2620.2,4.367]
[1748593002376,0.76296,2620.4,2620.3,0.6459]
[1748593002977,0.76306,2620.0,2619.9,0.6215]
[1748593003182,0.76306,2620.0,2619.9,4.9875]
[1748593003580,0.76305,2620.1,2619.9,4.9875]
[1748593003780,0.76306,2620.0,2619.9,4.9875]
[1748593005088,0.76309,2619.9,2619.8,3.2078]
[1748593005289,0.76312,2619.8,2619.7,4.366]
[1748593007487,0.76312,2619.8,2619.6,0.6459]
[1748593007688,0.76323,2619.4,2619.3,7.57952639]
[1748593008287,0.76322,2619.5,2619.3,7.57952639]
[1748593008490,0.76322,2619.5,2619.4,0.6635]
[1748593010893,0.7632,2619.6,2619.5,0.76318]
[1748593011290,0.7632,2619.5,2619.4,1.42672]
[1748593011495,0.76319,2619.6,2619.5,0.76317]
[1748593011996,6.38491,2620.1,2619.4,0.6635]
[1748593012295,0.76312,2619.8,2619.7,0.83304857]
[1748593013697,0.76312,2619.8,2619.7,0.06993857]
[1748593015292,0.19652639,2620.5,2619.7,8.27773857]
[1748593015490,0.19652639,2620.5,2620.3,0.76295]
[1748593015690,0.19652639,2620.5,2620.2,3.2078]
[1748593015691,0.95943639,2620.5,2620.4,4.365]
[1748593016292,0.95943639,2620.5,2620.4,5.6545]
[1748593016495,0.95943639,2620.5,2620.4,4.365]
[1748593016690,0.95943639,2620.5,2619.9,0.6182]
[1748593016691,5.31162639,2620.5,2619.9,0.6182]
[1748593017001,0.76312,2619.8,2619.7,0.06993857]
[1748593017905,2.03732,2619.8,2619.7,0.06993857]
[1748593018100,0.76312,2619.8,2619.7,0.06993857]
[1748593018794,2.03732,2619.8,2619.7,0.06993857]
[1748593020202,0.76312,2619.8,2619.7,0.83306857]
[1748593021199,0.76303,2620.2,2620.1,0.76301]
[1748593021509,0.76301,2620.2,2620.1,0.76299]
[1748593022005,0.76303,2620.1,2620.0,4.365]
[1748593022802,0.76309,2619.9,2619.8,4.365]
[1748593023110,0.76312,2619.8,2619.7,0.06993857]
[1748593023310,1.99852,2619.8,2619.7,0.06993857]
[1748593024509,1.99852,2619.8,2619.4,5.12823]
[1748593024510,0.7632,2619.5,2619.4,5.12823]
[1748593024805,0.76317,2619.7,2619.6,0.76315]
[1748593025007,1.2354,2619.8,2619.7,0.76315]
[1748593025008,0.76314,2619.8,2619.7,0.76315]
[1748593025204,0.76305,2620.1,2620.0,0.76303]
[1748593025398,0.76309,2620.0,2619.9,0.76306]
[1748593025606,0.76309,2620.0,2619.9,5.11006]
[1748593026002,0.76309,2620.0,2619.9,5.11009]
[1748593026198,0.76309,2620.0,2619.9,4.347]
[1748593026610,0.76312,2619.8,2619.7,4.347]
[1748593027412,0.76312,2619.8,2619.7,5.5743]
[1748593027709,1.9078,2619.8,2619.4,3.2078]
[1748593027911,0.7632,2619.5,2619.4,7.5548]
[1748593028810,0.7632,2619.5,2619.4,8.7821]
[1748593029117,0.7632,2619.5,2619.4,9.54533]
[1748593029906,1.90772,2619.9,2619.4,8.7821]
[1748593030108,0.76317,2619.7,2619.6,0.76315]
[1748593030313,0.76317,2619.6,2619.5,1.36478]
[1748593030608,0.1908,2619.7,2619.6,0.76317]
[1748593030809,0.00572639,2620.5,2619.7,1.90787]
[1748593031018,0.76302,2620.2,2620.1,0.76299]
[1748593031215,0.76302,2620.2,2620.1,6.33549]
[1748593031412,0.76302,2620.2,2620.1,7.57129]
[1748593031815,0.00572639,2620.5,2620.1,6.8083]
[1748593032012,0.76297,2620.4,2620.3,0.76295]
[1748593032410,0.00572639,2620.5,2620.4,0.76294]
[1748593032913,0.76294,2620.4,2620.3,0.76295]
[1748593033217,0.76865639,2620.5,2620.4,0.76294]
[1748593033419,0.76294,2620.4,2620.3,4.347]
[1748593033719,0.76294,2620.4,2620.3,5.10995]
[1748593034418,0.76294,2620.4,2620.3,4.347]
[1748593035316,0.763,2620.2,2620.1,0.6016]
[1748593035521,0.763,2620.2,2620.1,4.347]
[1748593035915,2.0695,2620.2,2620.1,4.347]
[1748593036117,0.76303,2620.1,2620.0,0.06993857]
[1748593036421,2.70393,2620.1,2620.0,0.06993857]
[1748593037018,3.82183747,2620.1,2620.0,0.06993857]
[1748593037233,0.76315,2619.7,2619.6,3.2078]
[1748593037524,0.76324,2619.4,2619.3,0.00572639]
[1748593038217,1.88073774,2619.4,2619.3,0.00572639]
[1748593038421,3.17703774,2619.4,2619.3,0.00572639]
[1748593038617,3.17703774,2619.4,2618.2,1.9089]
[1748593038618,0.76342,2618.8,2618.7,0.76342]
[1748593039322,0.76344,2618.7,2618.6,8.31827]
[1748593039725,0.76343,2618.8,2618.7,0.76343]
[1748593040121,0.76911639,2618.9,2618.8,0.76341]
[1748593040317,0.76344,2618.7,2618.6,7.5548]
[1748593040521,0.76344,2618.7,2618.6,8.31826]
[1748593040716,0.76344,2618.7,2618.6,7.5548]
[1748593042328,0.7635,2618.5,2618.4,0.00572639]
[1748593042521,0.7635,2618.5,2618.4,0.76925639]
[1748593042718,0.7635,2618.5,2618.4,0.00572639]
[1748593043321,2.0505,2618.5,2618.4,0.00572639]
[1748593044028,3.16568006,2618.5,2618.4,0.00572639]
[1748593044227,2.0505,2618.5,2618.4,0.00572639]
[1748593044426,3.164875,2618.5,2618.4,0.00572639]
[1748593044628,2.0505,2618.5,2618.4,0.00572639]
[1748593045026,8.16485494,2618.5,2618.4,6.39e-06]
[1748593045619,3.16485494,2618.5,2618.4,6.39e-06]
[1748593047034,8.16485494,2618.5,2618.4,6.39e-06]
[1748593048235,0.76382,2617.4,2617.3,4.349]
[1748593048435,0.76391,2617.1,2617.0,3.2078]
[1748593048622,0.76394,2617.0,2616.9,4.349]
[1748593048933,1.2761,2617.0,2616.6,3.97183]
[1748593049136,0.764,2616.8,2616.7,1.3276]
[1748593049828,0.764,2616.8,2616.7,2.09162]
[1748593050027,0.00572639,2617.1,2616.7,1.3276]
[1748593050328,0.00572639,2617.1,2616.8,1.3276]
[1748593050329,0.76397,2616.9,2616.8,1.3276]
[1748593050532,0.76402,2616.7,2616.6,3.2078]
[1748593051033,0.764,2616.8,2616.6,3.2078]
[1748593051230,0.76402,2616.7,2616.6,4.4184]
[1748593051732,3.21352639,2617.1,2616.6,4.4184]
[1748593051935,0.76395,2617.0,2616.7,1.2106]
[1748593052131,0.00572639,2617.1,2617.0,0.76394]
[1748593052432,0.00572639,2617.1,2617.0,6.95414]
[1748593052628,3.2078,2617.7,2617.6,0.76376]
[1748593052833,3.97155,2617.7,2617.3,3.2078]
[1748593053030,3.2078,2617.7,2617.4,0.76381]
[1748593053229,3.2078,2617.7,2617.5,1.2106]
[1748593053230,0.76376,2617.6,2617.5,1.2106]
[1748593053434,0.76389,2617.2,2617.1,5.0979]
[1748593053634,3.2078,2617.7,2617.1,5.0979]
[1748593053635,0.00572639,2617.4,2617.1,5.5378]